[Event "Titled Tuesday Blitz July 4 Late 2023"]
[White "The_Straightforward_Rook"]
[Black "Oliveira, Tiago Batista"]
[BlackFideId "2108291"]
[WhiteElo "2324"]
[BlackElo "2166"]
[Result "1-0"]
[Round "10"]
[TimeControl "180+2"]
[Date "2023.07.04"]
[WhiteClock "0:00:19"]
[BlackClock "0:00:02"]
[Board "104"]

1. d4 {[%clk 0:02:57]}  Nf6 {[%clk 0:02:56]} 2. c4 {[%clk 0:02:56]}  g6 {[%clk 0:02:56]} 3. h4 {[%clk 0:02:56]}  d5 {[%clk 0:02:54]} 4. cxd5 {[%clk 0:02:55]}  Bf5 {[%clk 0:02:45]} 5. Qb3 {[%clk 0:02:38]}  Qxd5 {[%clk 0:02:40]} 6. Nc3 {[%clk 0:02:30]}  Qxb3 {[%clk 0:02:38]} 7. axb3 {[%clk 0:02:31]}  Bg7 {[%clk 0:02:37]} 8. f3 {[%clk 0:02:25]}  Nc6 {[%clk 0:02:07]} 9. e4 {[%clk 0:02:23]}  Nxd4 {[%clk 0:02:07]} 10. Ra4 {[%clk 0:02:14]}  Nxb3 {[%clk 0:01:34]} 11. exf5 {[%clk 0:02:13]}  Nxc1 {[%clk 0:01:31]} 12. Rb4 {[%clk 0:01:59]}  O-O-O {[%clk 0:01:24]} 13. g4 {[%clk 0:01:42]}  h5 {[%clk 0:00:58]} 14. g5 {[%clk 0:01:39]}  Nd5 {[%clk 0:00:57]} 15. Nxd5 {[%clk 0:01:38]}  Rxd5 {[%clk 0:00:57]} 16. Rh2 {[%clk 0:01:37]}  Nd3+ {[%clk 0:00:52]} 17. Bxd3 {[%clk 0:01:37]}  Rxd3 {[%clk 0:00:50]} 18. fxg6 {[%clk 0:01:37]}  fxg6 {[%clk 0:00:49]} 19. Re2 {[%clk 0:01:38]}  Rd7 {[%clk 0:00:39]} 20. Nh3 {[%clk 0:01:33]}  e5 {[%clk 0:00:37]} 21. Nf2 {[%clk 0:01:30]}  Rhd8 {[%clk 0:00:34]} 22. Ne4 {[%clk 0:01:29]}  Rd1+ {[%clk 0:00:30]} 23. Kf2 {[%clk 0:01:29]}  Rh1 {[%clk 0:00:29]} 24. Kg3 {[%clk 0:01:16]}  Rdd1 {[%clk 0:00:28]} 25. Nf6 {[%clk 0:01:07]}  Rdg1+ {[%clk 0:00:22]} 26. Kf2 {[%clk 0:01:05]}  Rf1+ {[%clk 0:00:20]} 27. Ke3 {[%clk 0:01:01]}  Bf8 {[%clk 0:00:17]} 28. Re4 {[%clk 0:00:57]}  Bc5+ {[%clk 0:00:16]} 29. Kd3 {[%clk 0:00:57]}  Rd1+ {[%clk 0:00:15]} 30. Kc4 {[%clk 0:00:57]}  b6 {[%clk 0:00:15]} 31. Rxe5 {[%clk 0:00:53]}  Rd4+ {[%clk 0:00:15]} 32. Kb3 {[%clk 0:00:52]}  Rhd1 {[%clk 0:00:14]} 33. Ne4 {[%clk 0:00:48]}  Rb4+ {[%clk 0:00:13]} 34. Kc2 {[%clk 0:00:48]}  Rdd4 {[%clk 0:00:11]} 35. Re6 {[%clk 0:00:39]}  Rbc4+ {[%clk 0:00:10]} 36. Nc3 {[%clk 0:00:33]}  Rxh4 {[%clk 0:00:09]} 37. Rxg6 {[%clk 0:00:34]}  Rh3 {[%clk 0:00:07]} 38. Rf6 {[%clk 0:00:30]}  h4 {[%clk 0:00:06]} 39. g6 {[%clk 0:00:30]}  Bd4 {[%clk 0:00:05]} 40. Rf7 {[%clk 0:00:27]}  Rg3 {[%clk 0:00:04]} 41. Kd3 {[%clk 0:00:24]}  b5 {[%clk 0:00:04]} 42. Nxb5 {[%clk 0:00:23]}  c5 {[%clk 0:00:02]} 43. Kxc4 {[%clk 0:00:22]}  Rxg6 {[%clk 0:00:02]} 44. Re8# {[%clk 0:00:19]} 1-0


[Site "https://www.chess.com"]

[Event "Titled Tuesday Blitz July 4 Late 2023"]
[White "Kukavica, Tony"]
[Black "Tsukerman, Julia"]
[WhiteFideId "2062542"]
[BlackFideId "2621649"]
[WhiteElo "2292"]
[BlackElo "2103"]
[Result "1-0"]
[Round "10"]
[TimeControl "180+2"]
[Date "2023.07.04"]
[WhiteClock "0:02:21"]
[BlackClock "0:01:51"]
[Board "105"]

1. d4 {[%clk 0:03:00]}  d5 {[%clk 0:02:57]} 2. Nf3 {[%clk 0:03:00]}  Nf6 {[%clk 0:02:47]} 3. c4 {[%clk 0:03:00]}  e6 {[%clk 0:02:47]} 4. Nc3 {[%clk 0:03:00]}  Be7 {[%clk 0:02:46]} 5. Bf4 {[%clk 0:03:00]}  O-O {[%clk 0:02:45]} 6. e3 {[%clk 0:03:01]}  b6 {[%clk 0:02:43]} 7. h3 {[%clk 0:03:00]}  Bb7 {[%clk 0:02:42]} 8. Be2 {[%clk 0:02:59]}  dxc4 {[%clk 0:02:41]} 9. Bxc4 {[%clk 0:02:59]}  Nbd7 {[%clk 0:02:39]} 10. Qe2 {[%clk 0:02:59]}  c5 {[%clk 0:02:38]} 11. O-O {[%clk 0:02:58]}  Rc8 {[%clk 0:02:36]} 12. Rfd1 {[%clk 0:02:56]}  Qe8 {[%clk 0:02:34]} 13. Bb5 {[%clk 0:02:56]}  Bc6 {[%clk 0:02:33]} 14. Ba6 {[%clk 0:02:54]}  Ra8 {[%clk 0:02:30]} 15. Ne5 {[%clk 0:02:54]}  Nxe5 {[%clk 0:02:26]} 16. dxe5 {[%clk 0:02:51]}  Nd5 {[%clk 0:02:26]} 17. Nxd5 {[%clk 0:02:44]}  exd5 {[%clk 0:02:26]} 18. Bd3 {[%clk 0:02:33]}  h6 {[%clk 0:02:18]} 19. Qg4 {[%clk 0:02:32]}  Kh8 {[%clk 0:02:00]} 20. Bxh6 {[%clk 0:02:21]}  gxh6 {[%clk 0:01:51]} 21. Qf5 {[%clk 0:02:21]} 1-0


[Site "https://www.chess.com"]

[Event "Titled Tuesday Blitz July 4 Late 2023"]
[White "Mangialardo, Tiago Carvalho"]
[Black "Antonio, Jorge Carlos"]
[WhiteFideId "2130718"]
[BlackFideId "113190"]
[WhiteElo "2128"]
[BlackElo "2286"]
[Result "0-1"]
[Round "10"]
[TimeControl "180+2"]
[Date "2023.07.04"]
[WhiteClock "0:00:00"]
[BlackClock "0:01:26"]
[Board "106"]

1. e4 {[%clk 0:03:00]}  c5 {[%clk 0:02:58]} 2. Nf3 {[%clk 0:03:00]}  d6 {[%clk 0:02:57]} 3. Bb5+ {[%clk 0:02:58]}  Bd7 {[%clk 0:02:57]} 4. Bxd7+ {[%clk 0:02:58]}  Nxd7 {[%clk 0:02:57]} 5. O-O {[%clk 0:02:57]}  e6 {[%clk 0:02:57]} 6. c3 {[%clk 0:02:57]}  a6 {[%clk 0:02:57]} 7. d4 {[%clk 0:02:57]}  Rc8 {[%clk 0:02:53]} 8. e5 {[%clk 0:02:46]}  d5 {[%clk 0:02:52]} 9. Ne1 {[%clk 0:01:55]}  cxd4 {[%clk 0:02:50]} 10. cxd4 {[%clk 0:01:47]}  Ne7 {[%clk 0:02:50]} 11. Bg5 {[%clk 0:01:33]}  h6 {[%clk 0:02:48]} 12. Bh4 {[%clk 0:01:32]}  g5 {[%clk 0:02:47]} 13. Bg3 {[%clk 0:01:32]}  Nf5 {[%clk 0:02:47]} 14. f4 {[%clk 0:01:03]}  Qb6 {[%clk 0:02:42]} 15. Bf2 {[%clk 0:00:54]}  Be7 {[%clk 0:02:38]} 16. Nd2 {[%clk 0:00:43]}  Rg8 {[%clk 0:02:21]} 17. Nb3 {[%clk 0:00:27]}  a5 {[%clk 0:02:16]} 18. Rc1 {[%clk 0:00:24]}  Rc6 {[%clk 0:02:05]} 19. Rxc6 {[%clk 0:00:16]}  bxc6 {[%clk 0:02:04]} 20. Qd2 {[%clk 0:00:11]}  a4 {[%clk 0:02:03]} 21. Nc5 {[%clk 0:00:04]}  Nxc5 {[%clk 0:01:59]} 22. dxc5 {[%clk 0:00:03]}  Bxc5 {[%clk 0:01:53]} 23. Nd3 {[%clk 0:00:04]}  Bxf2+ {[%clk 0:01:51]} 24. Rxf2 {[%clk 0:00:05]}  g4 {[%clk 0:01:46]} 25. Qc3 {[%clk 0:00:03]}  Kd7 {[%clk 0:01:44]} 26. Qa3 {[%clk 0:00:03]}  g3 {[%clk 0:01:39]} 27. hxg3 {[%clk 0:00:03]}  Rxg3 {[%clk 0:01:39]} 28. Kf1 {[%clk 0:00:01]}  Qb5 {[%clk 0:01:30]} 29. Ke2 {[%clk 0:00:01]}  Nd4+ {[%clk 0:01:28]} 30. Kd1 {[%clk 0:00:00]}  Rxd3+ {[%clk 0:01:26]} 0-1


[Site "https://www.chess.com"]

[Event "Titled Tuesday Blitz July 4 Late 2023"]
[White "Zampronha, Wladimir Camilo"]
[Black "Upper, John"]
[WhiteFideId "2103087"]
[BlackFideId "2606437"]
[WhiteElo "2284"]
[BlackElo "1955"]
[Result "0-1"]
[Round "10"]
[TimeControl "180+2"]
[Date "2023.07.04"]
[WhiteClock "0:01:42"]
[BlackClock "0:01:08"]
[Board "107"]

1. e4 {[%clk 0:03:00]}  c5 {[%clk 0:02:59]} 2. Nf3 {[%clk 0:03:01]}  Nc6 {[%clk 0:02:58]} 3. d4 {[%clk 0:03:01]}  cxd4 {[%clk 0:02:59]} 4. Nxd4 {[%clk 0:03:02]}  Nf6 {[%clk 0:02:59]} 5. Nc3 {[%clk 0:03:01]}  e5 {[%clk 0:02:59]} 6. Ndb5 {[%clk 0:03:01]}  d6 {[%clk 0:03:00]} 7. Bg5 {[%clk 0:03:01]}  a6 {[%clk 0:02:59]} 8. Bxf6 {[%clk 0:03:02]}  gxf6 {[%clk 0:03:00]} 9. Na3 {[%clk 0:03:02]}  b5 {[%clk 0:02:59]} 10. Nd5 {[%clk 0:03:02]}  Bg7 {[%clk 0:02:59]} 11. Bd3 {[%clk 0:02:59]}  Ne7 {[%clk 0:02:57]} 12. c4 {[%clk 0:02:57]}  Qa5+ {[%clk 0:02:37]} 13. Kf1 {[%clk 0:02:52]}  Nxd5 {[%clk 0:02:34]} 14. cxd5 {[%clk 0:02:53]}  O-O {[%clk 0:02:28]} 15. Nc2 {[%clk 0:02:53]}  Kh8 {[%clk 0:02:23]} 16. Ne3 {[%clk 0:02:52]}  Qb4 {[%clk 0:01:57]} 17. Qe2 {[%clk 0:02:51]}  Rg8 {[%clk 0:01:50]} 18. h4 {[%clk 0:02:47]}  Bh6 {[%clk 0:01:46]} 19. g3 {[%clk 0:02:30]}  Qd4 {[%clk 0:01:31]} 20. Nc2 {[%clk 0:02:20]}  Qxb2 {[%clk 0:01:25]} 21. Kg2 {[%clk 0:02:19]}  Bd7 {[%clk 0:01:14]} 22. Qh5 {[%clk 0:02:18]}  Rg6 {[%clk 0:01:09]} 23. a4 {[%clk 0:01:42]}  Bg4 {[%clk 0:01:08]} 0-1


[Site "https://www.chess.com"]

[Event "Titled Tuesday Blitz July 4 Late 2023"]
[White "BenchGM"]
[Black "Sainz Aguirre, Ignacio"]
[BlackFideId "5101727"]
[WhiteElo "2349"]
[BlackElo "1977"]
[Result "1-0"]
[Round "10"]
[TimeControl "180+2"]
[Date "2023.07.04"]
[WhiteClock "0:00:32"]
[BlackClock "0:00:05"]
[Board "108"]

1. e4 {[%clk 0:03:00]}  e6 {[%clk 0:02:59]} 2. d4 {[%clk 0:03:00]}  d5 {[%clk 0:03:00]} 3. Nd2 {[%clk 0:03:00]}  c5 {[%clk 0:02:59]} 4. exd5 {[%clk 0:02:57]}  Qxd5 {[%clk 0:02:59]} 5. Ngf3 {[%clk 0:02:57]}  cxd4 {[%clk 0:02:59]} 6. Bc4 {[%clk 0:02:57]}  Qd6 {[%clk 0:02:58]} 7. O-O {[%clk 0:02:55]}  Nf6 {[%clk 0:02:58]} 8. Nb3 {[%clk 0:02:50]}  Nc6 {[%clk 0:02:59]} 9. Qe2 {[%clk 0:02:46]}  Be7 {[%clk 0:02:54]} 10. Rd1 {[%clk 0:02:46]}  Qc7 {[%clk 0:02:52]} 11. Nbxd4 {[%clk 0:02:40]}  Nxd4 {[%clk 0:02:50]} 12. Rxd4 {[%clk 0:02:40]}  O-O {[%clk 0:02:46]} 13. Bf4 {[%clk 0:02:39]}  Qb6 {[%clk 0:02:36]} 14. Bb3 {[%clk 0:02:22]}  Bc5 {[%clk 0:02:15]} 15. Rd2 {[%clk 0:02:18]}  Re8 {[%clk 0:01:46]} 16. Rad1 {[%clk 0:02:14]}  Ng4 {[%clk 0:01:22]} 17. Bg3 {[%clk 0:01:49]}  Nf6 {[%clk 0:01:16]} 18. Bd6 {[%clk 0:01:43]}  Bxd6 {[%clk 0:01:15]} 19. Rxd6 {[%clk 0:01:41]}  Qc7 {[%clk 0:01:11]} 20. Qd3 {[%clk 0:01:30]}  h6 {[%clk 0:01:08]} 21. Ne5 {[%clk 0:01:16]}  a5 {[%clk 0:00:56]} 22. c4 {[%clk 0:01:07]}  a4 {[%clk 0:00:55]} 23. Bc2 {[%clk 0:01:06]}  Ra5 {[%clk 0:00:38]} 24. f4 {[%clk 0:00:59]}  Qc5+ {[%clk 0:00:32]} 25. Kf1 {[%clk 0:00:41]}  a3 {[%clk 0:00:23]} 26. b3 {[%clk 0:00:36]}  Qc7 {[%clk 0:00:15]} 27. Rd8 {[%clk 0:00:34]}  Qe7 {[%clk 0:00:12]} 28. Rxe8+ {[%clk 0:00:32]}  Qxe8 {[%clk 0:00:10]} 29. Qd8 {[%clk 0:00:32]}  Kf8 {[%clk 0:00:05]} 30. Qxa5 {[%clk 0:00:32]} 1-0


[Site "https://www.chess.com"]

[Event "Titled Tuesday Blitz July 4 Late 2023"]
[White "Alimpic, Aleksa"]
[Black "Sanchez, Robert"]
[WhiteFideId "974323"]
[BlackFideId "2034360"]
[WhiteElo "2320"]
[BlackElo "2201"]
[Result "0-1"]
[Round "10"]
[TimeControl "180+2"]
[Date "2023.07.04"]
[WhiteClock "0:00:00"]
[BlackClock "0:00:17"]
[Board "109"]

1. Nf3 {[%clk 0:03:00]}  Nf6 {[%clk 0:02:59]} 2. g3 {[%clk 0:03:00]}  d5 {[%clk 0:02:59]} 3. Bg2 {[%clk 0:03:00]}  Nc6 {[%clk 0:03:00]} 4. d4 {[%clk 0:02:59]}  Bf5 {[%clk 0:03:00]} 5. c3 {[%clk 0:02:48]}  Qd7 {[%clk 0:02:59]} 6. O-O {[%clk 0:02:34]}  Bh3 {[%clk 0:02:53]} 7. Nbd2 {[%clk 0:02:33]}  Bxg2 {[%clk 0:02:53]} 8. Kxg2 {[%clk 0:02:34]}  h5 {[%clk 0:02:51]} 9. Re1 {[%clk 0:02:17]}  O-O-O {[%clk 0:02:49]} 10. e4 {[%clk 0:02:16]}  dxe4 {[%clk 0:02:49]} 11. Nxe4 {[%clk 0:02:17]}  Nxe4 {[%clk 0:02:49]} 12. Rxe4 {[%clk 0:02:17]}  e5 {[%clk 0:02:30]} 13. Nxe5 {[%clk 0:01:51]}  Nxe5 {[%clk 0:02:30]} 14. Rxe5 {[%clk 0:01:52]}  h4 {[%clk 0:02:24]} 15. Qf3 {[%clk 0:01:49]}  Bd6 {[%clk 0:02:10]} 16. Re1 {[%clk 0:01:43]}  hxg3 {[%clk 0:02:08]} 17. hxg3 {[%clk 0:01:30]}  Qh3+ {[%clk 0:02:07]} 18. Kg1 {[%clk 0:01:29]}  Qh2+ {[%clk 0:02:06]} 19. Kf1 {[%clk 0:01:29]}  Kb8 {[%clk 0:01:44]} 20. Be3 {[%clk 0:01:27]}  f5 {[%clk 0:01:39]} 21. Ke2 {[%clk 0:01:24]}  Qh7 {[%clk 0:01:31]} 22. Rh1 {[%clk 0:01:20]}  Qg6 {[%clk 0:01:30]} 23. Rxh8 {[%clk 0:01:17]}  Rxh8 {[%clk 0:01:31]} 24. Rh1 {[%clk 0:01:17]}  Re8 {[%clk 0:01:31]} 25. Kf1 {[%clk 0:00:42]}  f4 {[%clk 0:01:22]} 26. Bxf4 {[%clk 0:00:37]}  Rf8 {[%clk 0:01:15]} 27. Qh5 {[%clk 0:00:22]}  Qb1+ {[%clk 0:01:12]} 28. Kg2 {[%clk 0:00:21]}  Qxb2 {[%clk 0:01:06]} 29. Re1 {[%clk 0:00:03]}  a6 {[%clk 0:00:48]} 30. Re8+ {[%clk 0:00:02]}  Rxe8 {[%clk 0:00:47]} 31. Qxe8+ {[%clk 0:00:03]}  Ka7 {[%clk 0:00:48]} 32. Bxd6 {[%clk 0:00:04]}  cxd6 {[%clk 0:00:48]} 33. Qe3 {[%clk 0:00:03]}  Qxa2 {[%clk 0:00:44]} 34. d5+ {[%clk 0:00:03]}  Kb8 {[%clk 0:00:44]} 35. Qe8+ {[%clk 0:00:04]}  Ka7 {[%clk 0:00:31]} 36. Qe3+ {[%clk 0:00:04]}  Ka8 {[%clk 0:00:28]} 37. Qe8+ {[%clk 0:00:05]}  Ka7 {[%clk 0:00:27]} 38. Qe6 {[%clk 0:00:05]}  Qa3 {[%clk 0:00:24]} 39. g4 {[%clk 0:00:03]}  Qc5 {[%clk 0:00:18]} 40. g5 {[%clk 0:00:02]}  a5 {[%clk 0:00:17]} 41. g6 {[%clk 0:00:00]}  a4 {[%clk 0:00:17]} 0-1


[Site "https://www.chess.com"]

[Event "Titled Tuesday Blitz July 4 Late 2023"]
[White "Alexikov, Alexander"]
[Black "Bazzano, Sebastian"]
[WhiteFideId "14103958"]
[BlackFideId "104566"]
[WhiteElo "2249"]
[BlackElo "2223"]
[Result "1-0"]
[Round "10"]
[TimeControl "180+2"]
[Date "2023.07.04"]
[WhiteClock "0:00:07"]
[BlackClock "0:00:00"]
[Board "113"]

1. e4 {[%clk 0:03:00]}  c6 {[%clk 0:02:58]} 2. d4 {[%clk 0:02:59]}  d5 {[%clk 0:02:59]} 3. e5 {[%clk 0:02:59]}  Bf5 {[%clk 0:02:58]} 4. h4 {[%clk 0:03:00]}  h5 {[%clk 0:02:57]} 5. Ne2 {[%clk 0:02:58]}  e6 {[%clk 0:02:48]} 6. Ng3 {[%clk 0:02:57]}  Bg6 {[%clk 0:02:48]} 7. Be2 {[%clk 0:02:57]}  Be7 {[%clk 0:02:46]} 8. Bxh5 {[%clk 0:02:54]}  Bxh5 {[%clk 0:02:44]} 9. Nxh5 {[%clk 0:02:54]}  g6 {[%clk 0:02:43]} 10. Nf4 {[%clk 0:02:53]}  Rxh4 {[%clk 0:02:26]} 11. Rxh4 {[%clk 0:02:51]}  Bxh4 {[%clk 0:02:27]} 12. Qd3 {[%clk 0:02:51]}  Nd7 {[%clk 0:02:14]} 13. g3 {[%clk 0:02:25]}  Be7 {[%clk 0:01:59]} 14. c4 {[%clk 0:02:04]}  dxc4 {[%clk 0:01:55]} 15. Qxc4 {[%clk 0:02:02]}  Nb6 {[%clk 0:01:55]} 16. Qd3 {[%clk 0:02:01]}  Nd5 {[%clk 0:01:51]} 17. Nc3 {[%clk 0:02:01]}  Nxf4 {[%clk 0:01:18]} 18. Bxf4 {[%clk 0:01:59]}  Qd7 {[%clk 0:01:18]} 19. Be3 {[%clk 0:01:33]}  Bb4 {[%clk 0:01:03]} 20. Kf1 {[%clk 0:01:30]}  Bxc3 {[%clk 0:00:56]} 21. bxc3 {[%clk 0:01:28]}  Ne7 {[%clk 0:00:51]} 22. Rb1 {[%clk 0:01:25]}  O-O-O {[%clk 0:00:41]} 23. Qe4 {[%clk 0:01:15]}  Qd5 {[%clk 0:00:39]} 24. Qxd5 {[%clk 0:01:14]}  Nxd5 {[%clk 0:00:39]} 25. Bd2 {[%clk 0:01:12]}  b5 {[%clk 0:00:38]} 26. a4 {[%clk 0:01:10]}  a6 {[%clk 0:00:37]} 27. Kg2 {[%clk 0:00:58]}  Rh8 {[%clk 0:00:35]} 28. c4 {[%clk 0:00:49]}  bxc4 {[%clk 0:00:30]} 29. Rc1 {[%clk 0:00:48]}  Kd7 {[%clk 0:00:18]} 30. Rxc4 {[%clk 0:00:47]}  Rb8 {[%clk 0:00:18]} 31. Rc5 {[%clk 0:00:41]}  Rb2 {[%clk 0:00:16]} 32. Be1 {[%clk 0:00:37]}  Kc7 {[%clk 0:00:12]} 33. Kf3 {[%clk 0:00:32]}  Kb7 {[%clk 0:00:12]} 34. Kg4 {[%clk 0:00:28]}  Re2 {[%clk 0:00:11]} 35. Rc1 {[%clk 0:00:22]}  Re4+ {[%clk 0:00:11]} 36. f4 {[%clk 0:00:22]}  Rxd4 {[%clk 0:00:09]} 37. Rb1+ {[%clk 0:00:20]}  Kc7 {[%clk 0:00:06]} 38. Ba5+ {[%clk 0:00:19]}  Kc8 {[%clk 0:00:05]} 39. Rc1 {[%clk 0:00:16]}  Kb7 {[%clk 0:00:04]} 40. Rb1+ {[%clk 0:00:15]}  Kc8 {[%clk 0:00:04]} 41. Rc1 {[%clk 0:00:13]}  Kb7 {[%clk 0:00:04]} 42. Rh1 {[%clk 0:00:11]}  Rxa4 {[%clk 0:00:03]} 43. Bd8 {[%clk 0:00:10]}  Rd4 {[%clk 0:00:00]} 44. Bf6 {[%clk 0:00:07]} 1-0


[Site "https://www.chess.com"]

[Event "Titled Tuesday Blitz July 4 Late 2023"]
[White "Guimaraes, Wagner Peixoto"]
[Black "campochess"]
[WhiteFideId "2100940"]
[WhiteElo "2242"]
[BlackElo "2119"]
[Result "1-0"]
[Round "10"]
[TimeControl "180+2"]
[Date "2023.07.04"]
[WhiteClock "0:00:07"]
[BlackClock "0:00:00"]
[Board "114"]

1. e4 {[%clk 0:02:59]}  c5 {[%clk 0:02:59]} 2. Nf3 {[%clk 0:02:56]}  Nc6 {[%clk 0:02:59]} 3. Bb5 {[%clk 0:02:54]}  e6 {[%clk 0:02:58]} 4. O-O {[%clk 0:02:53]}  Nge7 {[%clk 0:02:58]} 5. Re1 {[%clk 0:02:48]}  a6 {[%clk 0:02:58]} 6. Bf1 {[%clk 0:02:48]}  d5 {[%clk 0:02:58]} 7. exd5 {[%clk 0:02:39]}  Nxd5 {[%clk 0:02:58]} 8. d4 {[%clk 0:02:39]}  cxd4 {[%clk 0:02:57]} 9. Nxd4 {[%clk 0:02:39]}  Bd7 {[%clk 0:02:52]} 10. Nf5 {[%clk 0:02:30]}  Bc8 {[%clk 0:01:55]} 11. a3 {[%clk 0:02:01]}  g6 {[%clk 0:01:54]} 12. Ng3 {[%clk 0:01:40]}  Bg7 {[%clk 0:01:43]} 13. c4 {[%clk 0:01:35]}  Nde7 {[%clk 0:01:42]} 14. Nc3 {[%clk 0:01:09]}  O-O {[%clk 0:01:40]} 15. Be3 {[%clk 0:01:04]}  Qc7 {[%clk 0:01:30]} 16. Rc1 {[%clk 0:01:03]}  Rd8 {[%clk 0:01:30]} 17. Qa4 {[%clk 0:00:46]}  Bd7 {[%clk 0:01:22]} 18. Qb3 {[%clk 0:00:31]}  Nd4 {[%clk 0:01:10]} 19. Bxd4 {[%clk 0:00:29]}  Bxd4 {[%clk 0:01:10]} 20. Nce4 {[%clk 0:00:26]}  Bc6 {[%clk 0:00:59]} 21. c5 {[%clk 0:00:20]}  Nd5 {[%clk 0:00:47]} 22. Qc2 {[%clk 0:00:17]}  Bg7 {[%clk 0:00:38]} 23. b4 {[%clk 0:00:17]}  Nf4 {[%clk 0:00:36]} 24. Nd6 {[%clk 0:00:16]}  e5 {[%clk 0:00:27]} 25. f3 {[%clk 0:00:16]}  h5 {[%clk 0:00:22]} 26. Bc4 {[%clk 0:00:16]}  Bd5 {[%clk 0:00:19]} 27. Bxd5 {[%clk 0:00:15]}  Nxd5 {[%clk 0:00:19]} 28. Qc4 {[%clk 0:00:14]}  Nf4 {[%clk 0:00:18]} 29. Nge4 {[%clk 0:00:14]}  Ne6 {[%clk 0:00:15]} 30. Red1 {[%clk 0:00:09]}  Nd4 {[%clk 0:00:15]} 31. Rxd4 {[%clk 0:00:09]}  exd4 {[%clk 0:00:14]} 32. Qd5 {[%clk 0:00:08]}  Rab8 {[%clk 0:00:13]} 33. Rd1 {[%clk 0:00:08]}  Rd7 {[%clk 0:00:12]} 34. Rxd4 {[%clk 0:00:08]}  Bxd4+ {[%clk 0:00:11]} 35. Qxd4 {[%clk 0:00:09]}  Rxd6 {[%clk 0:00:07]} 36. Nxd6 {[%clk 0:00:09]}  Rd8 {[%clk 0:00:04]} 37. h3 {[%clk 0:00:09]}  Qe7 {[%clk 0:00:03]} 38. Qd5 {[%clk 0:00:08]}  b6 {[%clk 0:00:02]} 39. Kh2 {[%clk 0:00:06]}  bxc5 {[%clk 0:00:02]} 40. bxc5 {[%clk 0:00:07]}  a5 {[%clk 0:00:01]} 41. a4 {[%clk 0:00:07]}  Rd7 {[%clk 0:00:01]} 42. Qa8+ {[%clk 0:00:06]}  Kg7 {[%clk 0:00:00]} 43. Qxa5 {[%clk 0:00:07]} 1-0


[Site "https://www.chess.com"]

[Event "Titled Tuesday Blitz July 4 Late 2023"]
[White "Gyulamiryan-koryun"]
[Black "Kovacevic, Radmila"]
[BlackFideId "933171"]
[WhiteElo "1732"]
[BlackElo "2224"]
[Result "0-1"]
[Round "10"]
[TimeControl "180+2"]
[Date "2023.07.04"]
[WhiteClock "0:00:00"]
[BlackClock "0:00:33"]
[Board "115"]

1. e4 {[%clk 0:02:58]}  e5 {[%clk 0:02:58]} 2. f4 {[%clk 0:02:58]}  exf4 {[%clk 0:02:57]} 3. Nf3 {[%clk 0:02:58]}  g5 {[%clk 0:02:57]} 4. h4 {[%clk 0:02:57]}  g4 {[%clk 0:02:57]} 5. Ne5 {[%clk 0:02:55]}  h5 {[%clk 0:02:55]} 6. Bc4 {[%clk 0:02:54]}  Nh6 {[%clk 0:02:55]} 7. d4 {[%clk 0:02:52]}  d6 {[%clk 0:02:35]} 8. Nd3 {[%clk 0:02:51]}  Be7 {[%clk 0:02:32]} 9. Bxf4 {[%clk 0:02:48]}  Bxh4+ {[%clk 0:02:31]} 10. g3 {[%clk 0:02:48]}  Bg5 {[%clk 0:02:30]} 11. Rf1 {[%clk 0:02:47]}  Nc6 {[%clk 0:02:24]} 12. c3 {[%clk 0:02:46]}  O-O {[%clk 0:02:07]} 13. Qd2 {[%clk 0:02:44]}  Bxf4 {[%clk 0:02:04]} 14. Nxf4 {[%clk 0:02:43]}  Qg5 {[%clk 0:02:00]} 15. Nd3 {[%clk 0:02:27]}  Qg6 {[%clk 0:01:53]} 16. Nf2 {[%clk 0:02:13]}  Be6 {[%clk 0:01:48]} 17. Bd3 {[%clk 0:02:10]}  Ne7 {[%clk 0:01:29]} 18. d5 {[%clk 0:02:07]}  Bd7 {[%clk 0:01:26]} 19. e5 {[%clk 0:02:00]}  Bf5 {[%clk 0:01:25]} 20. Bxf5 {[%clk 0:01:38]}  Nhxf5 {[%clk 0:01:26]} 21. Qd3 {[%clk 0:01:25]}  dxe5 {[%clk 0:01:21]} 22. c4 {[%clk 0:01:22]}  Nd4 {[%clk 0:01:06]} 23. Qxg6+ {[%clk 0:01:09]}  fxg6 {[%clk 0:01:07]} 24. Kd2 {[%clk 0:01:05]}  Rf3 {[%clk 0:01:03]} 25. Nc3 {[%clk 0:00:59]}  Rxg3 {[%clk 0:00:58]} 26. Nce4 {[%clk 0:00:47]}  Rg2 {[%clk 0:00:55]} 27. Kd3 {[%clk 0:00:39]}  Rf8 {[%clk 0:00:52]} 28. Rad1 {[%clk 0:00:11]}  Rf3+ {[%clk 0:00:50]} 29. Kd2 {[%clk 0:00:10]}  g3 {[%clk 0:00:45]} 30. Ng5 {[%clk 0:00:05]}  Rgxf2+ {[%clk 0:00:41]} 31. Rxf2 {[%clk 0:00:04]}  Rxf2+ {[%clk 0:00:39]} 32. Ke1 {[%clk 0:00:05]}  Nf3+ {[%clk 0:00:34]} 33. Nxf3 {[%clk 0:00:00]}  Rxf3 {[%clk 0:00:33]} 0-1


[Site "https://www.chess.com"]

[Event "Titled Tuesday Blitz July 4 Late 2023"]
[White "Burke, Paul"]
[Black "Awoki, Daniel Teidi"]
[WhiteFideId "2605767"]
[BlackFideId "2100827"]
[WhiteElo "1928"]
[BlackElo "2355"]
[Result "0-1"]
[Round "10"]
[TimeControl "180+2"]
[Date "2023.07.04"]
[WhiteClock "0:00:00"]
[BlackClock "0:00:47"]
[Board "118"]

1. e4 {[%clk 0:02:16]}  Nf6 {[%clk 0:03:00]} 2. Bc4 {[%clk 0:02:15]}  Nxe4 {[%clk 0:02:51]} 3. Bxf7+ {[%clk 0:02:15]}  Kxf7 {[%clk 0:02:50]} 4. Qh5+ {[%clk 0:02:15]}  g6 {[%clk 0:02:42]} 5. Qd5+ {[%clk 0:02:14]}  e6 {[%clk 0:02:43]} 6. Qxe4 {[%clk 0:02:13]}  Bg7 {[%clk 0:02:41]} 7. Nf3 {[%clk 0:02:13]}  Rf8 {[%clk 0:02:38]} 8. d4 {[%clk 0:02:08]}  Kg8 {[%clk 0:02:36]} 9. Bg5 {[%clk 0:02:04]}  Qe8 {[%clk 0:02:33]} 10. Nbd2 {[%clk 0:02:04]}  Nc6 {[%clk 0:02:29]} 11. O-O-O {[%clk 0:02:02]}  b6 {[%clk 0:02:07]} 12. h4 {[%clk 0:01:31]}  Bb7 {[%clk 0:02:06]} 13. Qe2 {[%clk 0:00:51]}  Nxd4 {[%clk 0:01:52]} 14. Nxd4 {[%clk 0:00:49]}  Bxd4 {[%clk 0:01:53]} 15. Nf3 {[%clk 0:00:38]}  Bxf3 {[%clk 0:01:48]} 16. gxf3 {[%clk 0:00:37]}  Bg7 {[%clk 0:01:43]} 17. h5 {[%clk 0:00:29]}  Qf7 {[%clk 0:01:27]} 18. hxg6 {[%clk 0:00:25]}  hxg6 {[%clk 0:01:27]} 19. f4 {[%clk 0:00:23]}  d6 {[%clk 0:00:56]} 20. Qg4 {[%clk 0:00:13]}  Qf5 {[%clk 0:00:54]} 21. Qh4 {[%clk 0:00:11]}  Kf7 {[%clk 0:00:54]} 22. Rhe1 {[%clk 0:00:06]}  Rh8 {[%clk 0:00:52]} 23. Qg3 {[%clk 0:00:06]}  Rh3 {[%clk 0:00:49]} 24. Qg2 {[%clk 0:00:06]}  Re8 {[%clk 0:00:48]} 25. Qc6 {[%clk 0:00:06]}  Qc5 {[%clk 0:00:47]} 26. Qxc5 {[%clk 0:00:00]}  bxc5 {[%clk 0:00:47]} 0-1


[Site "https://www.chess.com"]